[Event "XLV Badalona Open 2019"]
[Site "Badalona"]
[Date "2019.08.07"]
[Round "6.8"]
[White "Bru Rullo, Samuel"]
[Black "Korobitsyna, Olesya"]
[Result "1-0"]
[ECO "E73"]
[WhiteElo "1867"]
[BlackElo "1609"]
[Annotator "NA"]
[PlyCount "205"]
[EventDate "2019.08.02"]
[EventType "swiss"]
[EventCountry "ESP"]
[SourceTitle "playchess.com"]
[Source "ChessBase"]
[SourceQuality "1"]
[TimeControl "5400+30"]

1. d4 g6 {[%emt 0:00:00]} 2. c4 {[%emt 0:00:00]} Bg7 3. Nc3 {[%emt 0:00:00]} d6 {[%emt 0:00:07]} 4. e4 {[%emt 0:00:04]} Nf6 {[%emt 0:00:20]} 5. Be2 {[%emt 0:00:25]} O-O 6. Be3 {[%emt 0:00:21]} Nbd7 {[%emt 0:05:06]} 7. g4 {[%emt 0:00:08]} e5 {[%emt 0:05:13]} 8. d5 Ne8 {[%emt 0:05:52]} 9. h4 {[%emt 0:01:13]} f5 {[%emt 0:00:11]} 10. gxf5 {[%emt 0:01:26]} gxf5 {[%emt 0:01:00]} 11. exf5 {[%emt 0:16:55]} Rxf5 {[%emt 0:07:39]} 12. h5 {[%emt 0:04:00]} Rf8 {[%emt 0:06:17]} 13. Nh3 Qh4 {[%emt 0:00:12]} 14. Bg5 {[%emt 0:12:22]} Qd4 {[%emt 0:00:58]} 15. h6 {[%emt 0:05:16]} Qxd1+ 16. Rxd1 {[%emt 0:01:11]} Bf6 {[%emt 0:01:01]} 17. Rg1 {[%emt 0:01:06]} Kh8 {[%emt 0:09:08]} 18. Be3 {[%emt 0:14:19]} Nb6 {[%emt 0:01:15]} 19. Ng5 {[%emt 0:09:31]} Bf5 {[%emt 0:02:08]} 20. Nce4 {[%emt 0:00:11]} Be7 21. b3 {[%emt 0:00:35]} Nf6 {[%emt 0:04:05]} 22. Nxf6 {[%emt 0:05:50]} Rxf6 23. Kd2 Bf8 {[%emt 0:09:19]} 24. Bh5 {[%emt 0:00:55]} Bg6 {[%emt 0:00:23]} 25. Bxg6 {[%emt 0:04:59]} Rxg6 {[%emt 0:16:09]} 26. Rg3 Kg8 27. Ne4 {[%emt 0:02:19]} Rxg3 {[%emt 0:01:56]} 28. Nxg3 {[%emt 0:00:01]} Kf7 {[%emt 0:01:49]} 29. Rg1 {[%emt 0:00:45]} Be7 {[%emt 0:00:50]} 30. Ne4 {[%emt 0:08:25]} Rg8 31. Rxg8 {[%emt 0:00:38]} Kxg8 {[%emt 0:00:41]} 32. Ng5 {[%emt 0:00:02]} Bxg5 {[%emt 0:00:43]} 33. Bxg5 {[%emt 0:01:01]} Kf7 {[%emt 0:03:02]} 34. f4 {[%emt 0:01:14]} Kg6 35. Bd8 c6 {[%emt 0:05:33]} 36. fxe5 {[%emt 0:00:40]} dxe5 37. Bxb6 {[%emt 0:05:50]} axb6 {[%emt 0:01:37]} 38. b4 {[%emt 0:00:08]} cxd5 {[%emt 0:01:23]} 39. cxd5 Kf5 40. b5 {[%emt 0:01:40]} e4 {[%emt 0:01:04]} 41. Ke3 Ke5 {[%emt 0:00:14]} 42. d6 {[%emt 0:00:22]} Kxd6 {[%emt 0:00:06]} 43. Kxe4 {[%emt 0:00:05]} Ke6 44. a3 {[%emt 0:01:43]} Kf6 {[%emt 0:02:46]} 45. Kd5 Kg6 46. Kd6 {[%emt 0:00:35]} Kxh6 {[%emt 0:00:50]} 47. Kc7 {[%emt 0:00:02]} Kg5 {[%emt 0:00:36]} 48. Kxb7 {[%emt 0:00:07]} h5 {[%emt 0:00:07]} 49. Kxb6 h4 50. Ka7 {[%emt 0:00:13]} h3 {[%emt 0:00:15]} 51. b6 {[%emt 0:00:06]} h2 {[%emt 0:00:06]} 52. b7 {[%emt 0:00:03]} h1=Q {[%emt 0:00:45]} 53. b8=Q {[%emt 0:00:00]} Qh7+ {[%emt 0:01:57]} 54. Qb7 {[%emt 0:00:48]} Qd3 {[%emt 0:00:37]} 55. Qe7+ {[%emt 0:00:31]} Kf4 {[%emt 0:00:32]} 56. Qb4+ {[%emt 0:00:41]} Kg5 {[%emt 0:00:18]} 57. a4 {[%emt 0:00:23]} Qd7+ {[%emt 0:00:16]} 58. Ka6 {[%emt 0:00:37]} Qc6+ {[%emt 0:00:13]} 59. Ka5 {[%emt 0:00:15]} Qc7+ {[%emt 0:00:11]} 60. Qb6 {[%emt 0:00:34]} Qc3+ {[%emt 0:00:11]} 61. Ka6 {[%emt 0:00:33]} Qc8+ {[%emt 0:00:16]} 62. Kb5 Qd7+ {[%emt 0:00:18]} 63. Ka5 {[%emt 0:03:00]} Kf4 {[%emt 0:00:43]} 64. Qf2+ Kg5 {[%emt 0:00:34]} 65. Qg3+ {[%emt 0:01:29]} Kf6 66. Qf4+ {[%emt 0:00:05]} Kg7 {[%emt 0:00:47]} 67. Qe5+ {[%emt 0:00:19]} Kg6 {[%emt 0:00:49]} 68. Qb5 {[%emt 0:00:18]} Qd2+ {[%emt 0:01:04]} 69. Ka6 Qg2 {[%emt 0:00:17]} 70. Qb6+ {[%emt 0:01:10]} Kf5 {[%emt 0:00:24]} 71. a5 {[%emt 0:00:02]} Qa8+ {[%emt 0:00:09]} 72. Kb5 {[%emt 0:01:00]} Qe8+ {[%emt 0:00:44]} 73. Qc6 {[%emt 0:00:39]} Qb8+ {[%emt 0:00:40]} 74. Ka6 {[%emt 0:00:36]} Kf4 75. Qb6 {[%emt 0:00:15]} Qa8+ {[%emt 0:00:43]} 76. Kb5 {[%emt 0:00:24]} Qd5+ {[%emt 0:00:02]} 77. Kb4 {[%emt 0:00:46]} Qd2+ {[%emt 0:00:59]} 78. Kc5 {[%emt 0:00:18]} Qc3+ 79. Kb5 {[%emt 0:00:07]} Qd3+ {[%emt 0:00:52]} 80. Kc6 {[%emt 0:00:22]} Qe4+ {[%emt 0:00:14]} 81. Kc7 Qe7+ {[%emt 0:00:13]} 82. Kb8 {[%emt 0:01:26]} Qe8+ {[%emt 0:00:25]} 83. Kb7 Qe4+ {[%emt 0:00:21]} 84. Ka7 {[%emt 0:01:11]} Qe7+ {[%emt 0:00:28]} 85. Ka8 {[%emt 0:00:07]} Qe8+ {[%emt 0:00:19]} 86. Qb8+ Qe5 87. Qxe5+ {[%emt 0:00:41]} Kxe5 {[%emt 0:00:35]} 88. Kb7 {[%emt 0:00:05]} Kd6 {[%emt 0:00:00]} 89. a6 {[%emt 0:00:07]} Ke5 90. a7 {[%emt 0:00:17]} Kd4 {[%emt 0:00:13]} 91. a8=Q {[%emt 0:00:30]} Ke5 {[%emt 0:00:00]} 92. Qd8 {[%emt 0:00:09]} Ke4 {[%emt 0:00:00]} 93. Qd6 {[%emt 0:00:22]} Kf5 {[%emt 0:00:00]} 94. Kc6 {[%emt 0:00:12]} Ke4 {[%emt 0:00:00]} 95. Qd5+ Ke3 96. Kc5 {[%emt 0:00:27]} Kf4 {[%emt 0:00:27]} 97. Kd4 Kg3 {[%emt 0:00:00]} 98. Qe4 {[%emt 0:00:37]} Kf2 99. Kd3 {[%emt 0:00:13]} Kg3 {[%emt 0:00:20]} 100. Ke3 {[%emt 0:00:25]} Kh2 {[%emt 0:00:00]} 101. Qg6 {[%emt 0:01:37]} Kh3 102. Kf3 Kh2 {[%emt 0:00:31]} 103. Qg2# 1-0

[Event "XLV Badalona Open 2019"]
[Site "Badalona"]
[Date "2019.08.07"]
[Round "6.10"]
[White "Flores Linan, Jose Luis"]
[Black "Fabregas Fontanet, Antonio"]
[Result "0-1"]
[ECO "A50"]
[WhiteElo "1852"]
[BlackElo "1942"]
[Annotator "NA"]
[PlyCount "90"]
[EventDate "2019.08.02"]
[EventType "swiss"]
[EventCountry "ESP"]
[SourceTitle "playchess.com"]
[Source "ChessBase"]
[SourceQuality "1"]
[TimeControl "5400+30"]

1. d4 Nf6 2. c4 g6 3. d5 Bg7 4. Nc3 d6 5. e4 O-O 6. Nge2 e6 7. Ng3 exd5 8. cxd5 Re8 9. Be2 h5 10. Bg5 Nbd7 11. Bb5 Nxe4 12. Ngxe4 Bxc3+ 13. bxc3 Rxe4+ 14. Be3 Ne5 15. Be2 Bg4 16. O-O Bxe2 17. Qxe2 Ng4 18. Qf3 Qh4 19. Bf4 Rae8 20. h3 Nf6 21. Bg3 Qg5 22. h4 Qf5 23. Qxf5 gxf5 24. Rfd1 Rc4 25. Rd3 Re2 26. Rf3 f4 27. Bxf4 Nxd5 28. Bg3 Ne7 29. a4 a5 30. Bf4 Ree4 31. Bg5 Ng6 32. Bd8 Kf8 33. Rb1 Ke8 34. Bf6 b6 35. Rf5 Rf4 36. Rbb5 c6 37. g3 cxb5 38. gxf4 bxa4 39. Rb5 a3 40. Rb3 Ra4 41. c4 a2 42. Ba1 Rb4 43. Re3+ Kd7 44. Re1 Rb1 45. Kf1 Nxf4 0-1

[Event "XLV Badalona Open 2019"]
[Site "Badalona"]
[Date "2019.08.08"]
[Round "7.1"]
[White "Rojas Keim, Luis"]
[Black "Umetsubo, Cesar Hidemitsu"]
[Result "1-0"]
[ECO "C42"]
[WhiteElo "2338"]
[BlackElo "2406"]
[Annotator "NA"]
[PlyCount "95"]
[EventDate "2019.08.02"]
[EventType "swiss"]
[EventCountry "ESP"]
[SourceTitle "playchess.com"]
[Source "ChessBase"]
[SourceQuality "1"]
[TimeControl "5400+30"]

1. e4 {[%emt 0:00:00]} e5 {[%emt 0:00:00]} 2. Nf3 {[%emt 0:00:00]} Nf6 {[%emt 0:00:00]} 3. Nxe5 {[%emt 0:00:21]} d6 {[%emt 0:00:00]} 4. Nf3 {[%emt 0:00:05]} Nxe4 {[%emt 0:00:01]} 5. d4 {[%emt 0:00:03]} d5 {[%emt 0:00:12]} 6. Bd3 {[%emt 0:00:05]} Nc6 {[%emt 0:00:32]} 7. O-O {[%emt 0:00:07]} Be7 8. Nc3 {[%emt 0:00:56]} Nxc3 {[%emt 0:06:00]} 9. bxc3 {[%emt 0:00:29]} O-O {[%emt 0:10:21]} 10. h3 {[%emt 0:02:40]} Be6 {[%emt 0:05:56]} 11. Rb1 {[%emt 0:02:41]} b6 {[%emt 0:04:23]} 12. Re1 h6 {[%emt 0:00:18]} 13. Bf4 {[%emt 0:06:53]} Bd6 {[%emt 0:04:19]} 14. Ne5 {[%emt 0:02:06]} Nxe5 {[%emt 0:01:38]} 15. dxe5 {[%emt 0:01:51]} Bc5 {[%emt 0:14:10]} 16. Qh5 {[%emt 0:02:04]} f5 {[%emt 0:02:57]} 17. Bxh6 {[%emt 0:05:27]} Qe8 {[%emt 0:02:38]} 18. Qxe8 {[%emt 0:02:50]} Raxe8 {[%emt 0:05:39]} 19. Bg5 {[%emt 0:05:13]} c6 {[%emt 0:02:27]} 20. g3 {[%emt 0:04:11]} b5 21. a4 {[%emt 0:00:07]} bxa4 {[%emt 0:05:54]} 22. Ra1 {[%emt 0:01:35]} a3 {[%emt 0:06:52]} 23. Bc1 Rf7 {[%emt 0:00:21]} 24. Bxa3 {[%emt 0:01:00]} Bb6 {[%emt 0:05:58]} 25. Bd6 {[%emt 0:04:25]} g5 {[%emt 0:01:45]} 26. Kg2 Rh7 {[%emt 0:00:24]} 27. g4 {[%emt 0:09:52]} Rf7 {[%emt 0:02:25]} 28. f3 {[%emt 0:06:38]} c5 {[%emt 0:02:42]} 29. Rab1 Kg7 {[%emt 0:00:05]} 30. gxf5 {[%emt 0:05:43]} Bxf5 {[%emt 0:00:01]} 31. Bxf5 {[%emt 0:03:07]} Rxf5 {[%emt 0:12:10]} 32. Rb5 d4 {[%emt 0:00:06]} 33. Bxc5 {[%emt 0:05:09]} dxc3 34. Bxb6 {[%emt 0:01:35]} axb6 {[%emt 0:00:39]} 35. Re3 {[%emt 0:02:22]} Re6 {[%emt 0:01:21]} 36. Kg3 {[%emt 0:04:16]} Rc6 {[%emt 0:00:36]} 37. Kg4 {[%emt 0:01:11]} Kg6 38. Rb3 Rf4+ {[%emt 0:02:24]} 39. Kg3 {[%emt 0:00:34]} Kf5 {[%emt 0:00:00]} 40. e6 {[%emt 0:02:18]} Rxe6 {[%emt 0:00:00]} 41. Rxe6 {[%emt 0:00:38]} Kxe6 {[%emt 0:00:00]} 42. Rxb6+ {[%emt 0:01:28]} Ke5 {[%emt 0:00:37]} 43. Rb5+ {[%emt 0:00:06]} Kd4 44. Rxg5 {[%emt 0:00:07]} Rf8 {[%emt 0:00:37]} 45. Kf2 {[%emt 0:00:12]} Rh8 {[%emt 0:00:41]} 46. Rg4+ {[%emt 0:05:11]} Kc5 47. h4 {[%emt 0:00:05]} Rd8 {[%emt 0:00:23]} 48. Rg2 1-0

[Event "XLV Badalona Open 2019"]
[Site "Badalona"]
[Date "2019.08.08"]
[Round "7.2"]
[White "Sturt, Raven"]
[Black "Perez Mitjans, Orelvis"]
[Result "1-0"]
[ECO "E98"]
[WhiteElo "2429"]
[BlackElo "2416"]
[Annotator "NA"]
[PlyCount "71"]
[EventDate "2019.08.02"]
[EventType "swiss"]
[EventCountry "ESP"]
[SourceTitle "playchess.com"]
[Source "ChessBase"]
[SourceQuality "1"]
[TimeControl "5400+30"]

1. d4 Nf6 {[%emt 0:06:22]} 2. c4 {[%emt 0:00:24]} g6 3. Nc3 {[%emt 0:00:39]} Bg7 {[%emt 0:00:36]} 4. e4 {[%emt 0:00:04]} d6 {[%emt 0:00:00]} 5. Nf3 {[%emt 0:00:00]} O-O {[%emt 0:00:00]} 6. Be2 e5 7. O-O {[%emt 0:00:30]} Nc6 {[%emt 0:00:25]} 8. d5 {[%emt 0:00:04]} Ne7 {[%emt 0:00:05]} 9. Ne1 {[%emt 0:00:00]} Nd7 {[%emt 0:00:31]} 10. Be3 {[%emt 0:00:00]} f5 11. f3 {[%emt 0:00:00]} f4 {[%emt 0:00:47]} 12. Bf2 {[%emt 0:00:00]} g5 {[%emt 0:03:54]} 13. Nd3 {[%emt 0:00:31]} Nf6 {[%emt 0:01:27]} 14. c5 {[%emt 0:02:21]} h5 {[%emt 0:13:43]} 15. Rc1 {[%emt 0:04:46]} Ne8 {[%emt 0:01:00]} 16. Nb5 Ng6 {[%emt 0:00:05]} 17. cxd6 {[%emt 0:03:49]} cxd6 {[%emt 0:05:11]} 18. Nxa7 {[%emt 0:18:35]} Bd7 {[%emt 0:16:47]} 19. Qb3 {[%emt 0:04:39]} Qb8 {[%emt 0:07:21]} 20. Nb5 {[%emt 0:03:43]} g4 {[%emt 0:00:48]} 21. Bb6 {[%emt 0:05:28]} Rf7 {[%emt 0:16:22]} 22. a4 {[%emt 0:11:01]} Nh4 {[%emt 0:03:42]} 23. Kh1 {[%emt 0:05:39]} Bf8 {[%emt 0:00:56]} 24. a5 {[%emt 0:02:45]} Rg7 {[%emt 0:06:45]} 25. Rg1 {[%emt 0:03:42]} Kh8 {[%emt 0:01:44]} 26. Rc3 {[%emt 0:04:06]} Be7 {[%emt 0:01:26]} 27. Ne1 {[%emt 0:01:45]} Bd8 {[%emt 0:02:05]} 28. g3 {[%emt 0:01:39]} Ng6 {[%emt 0:01:31]} 29. Na3 {[%emt 0:01:14]} Nf6 {[%emt 0:01:26]} 30. Nc4 gxf3 {[%emt 0:00:02]} 31. Bxf3 {[%emt 0:00:38]} Bg4 {[%emt 0:01:38]} 32. Qb4 {[%emt 0:02:26]} Bxf3+ {[%emt 0:06:34]} 33. Rxf3 Bxb6 {[%emt 0:00:01]} 34. Nxb6 {[%emt 0:01:15]} Ra6 {[%emt 0:01:12]} 35. Nd3 {[%emt 0:00:54]} fxg3 36. Rxf6 1-0

[Event "XLV Badalona Open 2019"]
[Site "Badalona"]
[Date "2019.08.08"]
[Round "7.3"]
[White "Lopez Gonzalez, Abel Fabian"]
[Black "Hernandez, Cristian Andres"]
[Result "1/2-1/2"]
[ECO "E39"]
[WhiteElo "2355"]
[BlackElo "2355"]
[Annotator "NA"]
[PlyCount "79"]
[EventDate "2019.08.02"]
[EventType "swiss"]
[EventCountry "ESP"]
[SourceTitle "playchess.com"]
[Source "ChessBase"]
[SourceQuality "1"]
[TimeControl "5400+30"]

1. d4 Nf6 2. c4 {[%emt 0:07:20]} e6 {[%emt 0:00:00]} 3. Nc3 {[%emt 0:00:00]} Bb4 {[%emt 0:00:02]} 4. Qc2 {[%emt 0:00:00]} c5 {[%emt 0:01:09]} 5. dxc5 {[%emt 0:00:20]} O-O {[%emt 0:00:06]} 6. a3 {[%emt 0:00:12]} Bxc5 {[%emt 0:04:35]} 7. Nf3 {[%emt 0:01:20]} Qb6 {[%emt 0:00:15]} 8. e3 {[%emt 0:06:17]} Be7 {[%emt 0:07:03]} 9. Bd3 {[%emt 0:00:24]} d6 {[%emt 0:00:44]} 10. O-O {[%emt 0:00:19]} Nbd7 {[%emt 0:00:31]} 11. b4 {[%emt 0:04:36]} a6 {[%emt 0:00:14]} 12. Bb2 {[%emt 0:01:10]} Qc7 {[%emt 0:01:35]} 13. Rac1 {[%emt 0:07:05]} b6 {[%emt 0:00:32]} 14. Ng5 {[%emt 0:00:17]} h6 {[%emt 0:03:12]} 15. Nh7 {[%emt 0:00:10]} Rd8 {[%emt 0:00:44]} 16. Nxf6+ Nxf6 {[%emt 0:00:21]} 17. Ne4 {[%emt 0:00:46]} Nxe4 {[%emt 0:00:30]} 18. Bxe4 {[%emt 0:02:20]} Bb7 {[%emt 0:02:24]} 19. Bh7+ {[%emt 0:00:18]} Kh8 {[%emt 0:13:31]} 20. Bd3 {[%emt 0:19:21]} a5 {[%emt 0:29:48]} 21. e4 {[%emt 0:03:31]} e5 {[%emt 0:04:34]} 22. Qb3 {[%emt 0:03:03]} Bc6 {[%emt 0:02:40]} 23. Bc3 {[%emt 0:25:08]} Bd7 {[%emt 0:06:03]} 24. c5 {[%emt 0:01:22]} dxc5 {[%emt 0:03:59]} 25. bxa5 {[%emt 0:00:53]} Be6 {[%emt 0:00:18]} 26. Bc4 {[%emt 0:00:05]} Bxc4 {[%emt 0:04:35]} 27. Qxc4 {[%emt 0:01:19]} f6 {[%emt 0:00:06]} 28. axb6 {[%emt 0:01:56]} Qxb6 {[%emt 0:02:23]} 29. a4 {[%emt 0:02:46]} Qa6 {[%emt 0:00:12]} 30. Qf7 {[%emt 0:01:05]} Bf8 {[%emt 0:02:41]} 31. a5 {[%emt 0:02:04]} Ra7 {[%emt 0:03:05]} 32. Qg6 {[%emt 0:01:52]} Rad7 {[%emt 0:00:30]} 33. Bxe5 {[%emt 0:01:18]} Qe2 {[%emt 0:01:04]} 34. Rce1 {[%emt 0:00:44]} Qd2 {[%emt 0:01:39]} 35. Ba1 {[%emt 0:00:20]} Qxa5 {[%emt 0:00:48]} 36. e5 {[%emt 0:00:07]} fxe5 {[%emt 0:00:41]} 37. Bxe5 {[%emt 0:02:06]} Kg8 {[%emt 0:00:30]} 38. h4 {[%emt 0:00:53]} Qa2 {[%emt 0:00:57]} 39. h5 {[%emt 0:00:38]} Qf7 {[%emt 0:03:16]} 40. Qg4 1/2-1/2

[Event "XLV Badalona Open 2019"]
[Site "Badalona"]
[Date "2019.08.08"]
[Round "7.4"]
[White "Mascaro March, Pedro"]
[Black "Munoz, Miguel"]
[Result "1/2-1/2"]
[ECO "A46"]
[WhiteElo "2376"]
[BlackElo "2511"]
[Annotator "ChessBase"]
[PlyCount "81"]
[EventDate "2019.08.02"]
[EventType "swiss"]
[EventCountry "ESP"]
[SourceTitle "playchess.com"]
[Source "ChessBase"]
[SourceQuality "1"]
[TimeControl "5400+30"]

1. d4 {[%emt 0:00:00]} Nf6 {[%emt 0:00:00]} 2. Nf3 {[%emt 0:00:00]} c5 {[%emt 0:00:10]} 3. e3 {[%emt 0:02:17]} g6 {[%emt 0:00:52]} 4. dxc5 {[%emt 0:00:29]} Qa5+ {[%emt 0:02:01]} 5. Nbd2 {[%emt 0:01:20]} Bg7 6. a3 {[%emt 0:00:13]} Qxc5 {[%emt 0:08:29]} 7. b4 Qc7 {[%emt 0:00:05]} 8. Bb2 {[%emt 0:00:34]} O-O {[%emt 0:00:00]} 9. c4 {[%emt 0:01:01]} Nc6 {[%emt 0:00:51]} 10. Be2 {[%emt 0:00:24]} d6 {[%emt 0:00:46]} 11. O-O {[%emt 0:01:40]} Bf5 {[%emt 0:00:56]} 12. Rc1 {[%emt 0:02:41]} a5 {[%emt 0:01:55]} 13. b5 {[%emt 0:10:11]} Nb8 {[%emt 0:01:04]} 14. Nd4 {[%emt 0:14:46]} Bc8 {[%emt 0:13:50]} 15. Nb1 {[%emt 0:04:20]} e5 {[%emt 0:01:13]} 16. Nb3 {[%emt 0:01:29]} a4 {[%emt 0:02:25]} 17. N3d2 {[%emt 0:00:32]} Nbd7 {[%emt 0:03:07]} 18. Nc3 {[%emt 0:00:37]} Nc5 {[%emt 0:03:28]} 19. e4 {[%emt 0:01:29]} Qd8 {[%emt 0:06:08]} 20. Qc2 {[%emt 0:01:13]} Bh6 {[%emt 0:01:32]} 21. Rcd1 {[%emt 0:07:40]} Be6 {[%emt 0:03:53]} 22. Rfe1 {[%emt 0:05:38]} Nfd7 {[%emt 0:05:02]} 23. Nf3 {[%emt 0:19:48]} Qe7 {[%emt 0:04:09]} 24. h3 {[%emt 0:01:22]} Nb6 {[%emt 0:01:40]} 25. Nd5 {[%emt 0:00:51]} Nxd5 {[%emt 0:09:41]} 26. cxd5 {[%emt 0:00:26]} Bxh3 {[%emt 0:00:22]} 27. gxh3 {[%emt 0:02:14]} Rac8 {[%emt 0:00:33]} 28. Bc4 {[%emt 0:04:40]} Bf4 {[%emt 0:01:40]} 29. Qe2 f5 {[%emt 0:00:05]} 30. exf5 {[%emt 0:01:47]} Rxf5 {[%emt 0:07:45]} 31. Bd4 Qd7 {[%emt 0:00:06]} 32. Bxc5 {[%emt 0:03:55]} Rh5 {[%emt 0:00:21]} 33. Qf1 {[%emt 0:01:43]} Rxc5 {[%emt 0:00:30]} 34. Re4 {[%emt 0:02:27]} Qf5 {[%emt 0:00:53]} 35. Rde1 {[%emt 0:01:38]} Rxh3 36. Qg2 Rh5 37. Bd3 Rc3 38. Rxe5 Qxd3 39. Rxh5 Qxf3 40. Rh4 Qxg2+ 41. Kxg2 1/2-1/2

[Event "XLV Badalona Open 2019"]
[Site "Badalona"]
[Date "2019.08.08"]
[Round "7.5"]
[White "Lorenzo De La Riva, Lazaro"]
[Black "Oliva Castaneda, Kevel"]
[Result "1-0"]
[ECO "C95"]
[WhiteElo "2373"]
[BlackElo "2467"]
[Annotator "ChessBase"]
[PlyCount "81"]
[EventDate "2019.08.02"]
[EventType "swiss"]
[EventCountry "ESP"]
[SourceTitle "playchess.com"]
[Source "ChessBase"]
[SourceQuality "1"]
[TimeControl "5400+30"]

1. e4 {[%emt 0:00:00]} e5 {[%emt 0:00:04]} 2. Nf3 {[%emt 0:00:00]} Nc6 {[%emt 0:00:06]} 3. Bb5 {[%emt 0:00:00]} a6 {[%emt 0:00:10]} 4. Ba4 {[%emt 0:00:25]} Nf6 {[%emt 0:00:06]} 5. O-O Be7 {[%emt 0:00:08]} 6. Re1 {[%emt 0:00:51]} b5 {[%emt 0:00:06]} 7. Bb3 {[%emt 0:00:03]} d6 8. c3 {[%emt 0:00:20]} O-O {[%emt 0:00:37]} 9. h3 {[%emt 0:00:05]} Nb8 {[%emt 0:00:00]} 10. d4 {[%emt 0:00:30]} Nbd7 11. Nbd2 {[%emt 0:03:15]} Bb7 {[%emt 0:00:24]} 12. Bc2 {[%emt 0:01:01]} Re8 {[%emt 0:00:28]} 13. Nf1 {[%emt 0:00:50]} Bf8 {[%emt 0:00:09]} 14. Ng3 {[%emt 0:01:12]} g6 15. a4 {[%emt 0:00:32]} c5 {[%emt 0:00:50]} 16. d5 {[%emt 0:00:53]} c4 {[%emt 0:00:42]} 17. Bg5 Nc5 {[%emt 0:00:08]} 18. Qd2 {[%emt 0:02:23]} Be7 {[%emt 0:02:31]} 19. Be3 {[%emt 0:05:32]} Nfd7 {[%emt 0:06:47]} 20. Rf1 {[%emt 0:05:17]} Qc7 {[%emt 0:01:55]} 21. Nh2 {[%emt 0:01:25]} Nb6 {[%emt 0:00:17]} 22. axb5 {[%emt 0:00:08]} axb5 {[%emt 0:00:30]} 23. Rxa8 {[%emt 0:09:08]} Rxa8 {[%emt 0:02:31]} 24. Ng4 {[%emt 0:04:18]} Bc8 {[%emt 0:20:46]} 25. Nh6+ {[%emt 0:00:30]} Kg7 {[%emt 0:00:00]} 26. f4 {[%emt 0:06:26]} f6 {[%emt 0:07:52]} 27. f5 {[%emt 0:17:44]} Bd7 {[%emt 0:11:37]} 28. Ng4 {[%emt 0:00:30]} Be8 {[%emt 0:02:06]} 29. Bh6+ {[%emt 0:02:28]} Kf7 {[%emt 0:00:05]} 30. fxg6+ {[%emt 0:01:16]} hxg6 {[%emt 0:03:08]} 31. Nh5 {[%emt 0:21:48]} Nbd7 {[%emt 0:01:23]} 32. Bg7 {[%emt 0:00:37]} gxh5 {[%emt 0:01:07]} 33. Qh6 {[%emt 0:00:22]} hxg4 34. Bh8 Ne6 {[%emt 0:03:06]} 35. Qh7+ {[%emt 0:00:42]} Kf8 {[%emt 0:00:04]} 36. dxe6 {[%emt 0:00:00]} Bh5 {[%emt 0:01:05]} 37. Qxh5 {[%emt 0:00:14]} Kg8 {[%emt 0:00:00]} 38. Qxg4+ {[%emt 0:01:33]} Kxh8 {[%emt 0:00:20]} 39. Qh5+ {[%emt 0:00:00]} Kg8 {[%emt 0:00:22]} 40. Qf7+ {[%emt 0:00:14]} Kh8 41. Rf5 {[%emt 0:00:40]} 1-0

[Event "XLV Badalona Open 2019"]
[Site "Badalona"]
[Date "2019.08.08"]
[Round "7.6"]
[White "Becerra, Juan David"]
[Black "Berdayes Ason, Dylan Isidro"]
[Result "1/2-1/2"]
[ECO "B22"]
[WhiteElo "2327"]
[BlackElo "2461"]
[Annotator "ChessBase"]
[PlyCount "54"]
[EventDate "2019.08.02"]
[EventType "swiss"]
[EventCountry "ESP"]
[SourceTitle "playchess.com"]
[Source "ChessBase"]
[SourceQuality "1"]
[TimeControl "5400+30"]

1. e4 {[%emt 0:00:00]} c5 {[%emt 0:05:58]} 2. c3 Nf6 {[%emt 0:00:23]} 3. e5 {[%emt 0:00:19]} Nd5 {[%emt 0:00:00]} 4. d4 {[%emt 0:00:00]} cxd4 {[%emt 0:00:00]} 5. cxd4 {[%emt 0:00:11]} e6 {[%emt 0:01:12]} 6. Nc3 {[%emt 0:00:07]} Nxc3 {[%emt 0:02:48]} 7. bxc3 d6 {[%emt 0:00:03]} 8. Nf3 {[%emt 0:03:12]} Qc7 9. Bd2 {[%emt 0:00:29]} Nd7 {[%emt 0:00:31]} 10. exd6 {[%emt 0:00:00]} Bxd6 {[%emt 0:00:04]} 11. Bd3 {[%emt 0:02:36]} b6 {[%emt 0:01:29]} 12. O-O {[%emt 0:00:12]} Bb7 {[%emt 0:02:54]} 13. Re1 {[%emt 0:02:37]} O-O {[%emt 0:04:11]} 14. h3 {[%emt 0:14:59]} Rfe8 {[%emt 0:06:54]} 15. c4 {[%emt 0:06:23]} Bf4 16. Ne5 {[%emt 0:21:26]} Bxe5 {[%emt 0:03:17]} 17. dxe5 {[%emt 0:00:41]} Nc5 {[%emt 0:03:29]} 18. Bc2 {[%emt 0:14:05]} Rad8 {[%emt 0:20:40]} 19. Qh5 {[%emt 0:01:43]} Rxd2 {[%emt 0:01:21]} 20. Qxh7+ {[%emt 0:00:03]} Kf8 {[%emt 0:00:30]} 21. Qh8+ {[%emt 0:00:30]} Ke7 {[%emt 0:00:00]} 22. Qxg7 Rdd8 {[%emt 0:00:00]} 23. Qf6+ {[%emt 0:18:48]} Kd7 {[%emt 0:00:19]} 24. Qxf7+ {[%emt 0:01:03]} Re7 {[%emt 0:03:42]} 25. Rad1+ Kc8 {[%emt 0:00:02]} 26. Rxd8+ {[%emt 0:00:59]} Qxd8 {[%emt 0:03:19]} 27. Qf6 Qg8 1/2-1/2